bitfinex/quotes_BTCUSD_20250410
["timestamp","ask_amount","ask_price","bid_price","bid_amount"]
[1744311195984,0.012596,79387.0,79367.0,0.0001]
[1744311195985,0.264589,79368.0,79367.0,0.0001]
[1744311196205,0.012598,79373.0,79367.0,0.0001]
[1744311196434,0.264589,79368.0,79367.0,0.0001]
[1744311196727,0.40603743,79368.0,79367.0,1e-06]
[1744311197071,0.45123743,79368.0,79367.0,1e-06]
[1744311197930,0.264589,79368.0,79367.0,1e-06]
[1744311198331,0.40603743,79368.0,79367.0,1e-06]
[1744311198734,1.16513743,79368.0,79367.0,1e-06]
[1744311198933,1.21453743,79368.0,79367.0,1e-06]
[1744311199537,1.21453743,79368.0,79367.0,0.000101]
[1744311199756,0.87453743,79368.0,79367.0,0.000101]
[1744311201370,0.82513743,79368.0,79367.0,0.000101]
[1744311203329,0.683689,79368.0,79367.0,0.000101]
[1744311204160,0.82513743,79368.0,79367.0,0.000101]
[1744311208551,0.683689,79368.0,79367.0,0.000101]
[1744311210550,0.82513743,79368.0,79367.0,0.000101]
[1744311210796,1.38691308,79368.0,79367.0,1e-06]
[1744311210951,1.26013743,79368.0,79367.0,1e-06]
[1744311212499,1.16513743,79368.0,79367.0,1e-06]
[1744311212699,0.82513743,79368.0,79367.0,1e-06]
[1744311212910,0.683689,79368.0,79367.0,1e-06]
[1744311214616,0.264576,79374.0,79367.0,1e-06]
[1744311214617,0.012598,79374.0,79369.0,0.012599]
[1744311214817,0.25198,79372.0,79369.0,0.251987]
[1744311215017,0.251982,79371.0,79367.0,0.0126]
[1744311215377,0.251984,79370.0,79367.0,0.264591]
[1744311215921,0.251988,79369.0,79367.0,1e-06]
[1744311216343,0.264575,79373.0,79367.0,1e-06]
[1744311216344,0.251955,79380.0,79374.0,0.012598]
[1744311216549,0.13129828,79394.0,79377.0,0.012598]
[1744311216750,0.13129828,79394.0,79387.0,0.012596]
[1744311216751,0.251911,79393.0,79387.0,0.012596]
[1744311216914,0.264512,79391.0,79386.0,0.251931]
[1744311217263,0.264512,79391.0,79385.0,0.012596]
[1744311217441,0.251924,79389.0,79387.0,0.251927]
[1744311217763,0.251917,79391.0,79388.0,0.251926]
[1744311218064,0.14431475,79394.0,79387.0,0.264523]
[1744311218065,0.13171975,79394.0,79392.0,0.251914]
[1744311218262,0.00042147,79394.0,79392.0,0.251912]
[1744311218466,0.25232947,79394.0,79391.0,0.264511]
[1744311218630,0.00042147,79394.0,79391.0,0.264511]
[1744311218824,0.00042147,79394.0,79393.0,0.264506]
[1744311219101,0.00042147,79394.0,79393.0,0.251911]
[1744311219454,0.00042147,79394.0,79391.0,0.251917]
[1744311219774,0.00042147,79394.0,79393.0,0.251911]
[1744311219976,0.00042147,79394.0,79389.0,0.012596]
[1744311219977,0.012597,79382.0,79374.0,0.0467]
[1744311220143,0.012596,79384.0,79376.0,0.012598]
[1744311220345,0.251943,79383.0,79380.0,0.25195]
[1744311220568,0.012596,79386.0,79383.0,0.251942]
[1744311220988,0.251943,79383.0,79379.0,0.012597]
[1744311221189,0.012597,79379.0,79374.0,0.251969]
[1744311221362,0.012598,79377.0,79373.0,0.251973]
[1744311221601,0.251965,79377.0,79373.0,0.012598]
[1744311221775,0.251954,79380.0,79373.0,0.012598]
[1744311221976,0.012597,79381.0,79373.0,0.012598]
[1744311221977,0.264546,79381.0,79376.0,0.012598]
[1744311222176,0.264546,79381.0,79373.0,0.012598]
[1744311222177,0.012596,79389.0,79378.0,0.012597]
[1744311222424,0.251937,79385.0,79381.0,0.251948]
[1744311222642,0.251946,79382.0,79379.0,0.26455]
[1744311222985,0.251946,79382.0,79379.0,0.251953]
[1744311223189,0.012597,79379.0,79374.0,0.012598]
[1744311223396,0.012597,79381.0,79375.0,0.012598]
[1744311223591,0.012597,79379.0,79369.0,0.0466]
[1744311223793,0.012597,79379.0,79359.0,0.17696]
[1744311223794,0.012599,79370.0,79365.0,0.264599]
[1744311224012,0.012599,79370.0,79360.0,0.0126]
[1744311224013,0.012599,79368.0,79352.0,0.25204]
[1744311224235,0.012599,79368.0,79355.0,0.012601]
[1744311224420,0.012599,79368.0,79351.0,0.012602]
[1744311224421,0.251975,79373.0,79370.0,0.012599]
[1744311224621,0.00935222,79376.0,79361.0,0.0126]
[1744311224622,0.264567,79375.0,79371.0,0.25198]
[1744311224842,0.264576,79372.0,79367.0,0.251993]
[1744311224992,0.251984,79370.0,79367.0,0.251993]
[1744311225193,0.264581,79371.0,79367.0,0.251993]
[1744311225619,0.012598,79373.0,79367.0,0.264592]
[1744311225823,0.251978,79372.0,79368.0,0.251989]
[1744311226037,0.251956,79379.0,79368.0,0.251989]
[1744311226038,0.251967,79376.0,79373.0,0.251974]
[1744311226335,0.264555,79378.0,79368.0,0.012599]
[1744311226336,0.251978,79372.0,79368.0,0.012599]
[1744311226536,0.012598,79375.0,79369.0,0.012599]
[1744311226784,0.012597,79382.0,79374.0,0.012598]
[1744311227116,0.012596,79385.0,79379.0,0.012597]
[1744311227362,0.012597,79383.0,79377.0,0.012598]
[1744311227824,0.012597,79383.0,79375.0,0.251967]
[1744311227825,0.012597,79383.0,79375.0,0.012598]
[1744311228033,0.25195,79381.0,79378.0,0.264555]
[1744311228269,0.251937,79385.0,79381.0,0.012597]
[1744311228425,0.251939,79385.0,79382.0,0.251945]
[1744311228605,0.25194,79384.0,79381.0,0.264546]
[1744311228805,0.264531,79386.0,79383.0,0.251942]
[1744311229032,0.251935,79386.0,79382.0,0.251945]
[1744311229247,0.251925,79389.0,79384.0,0.264535]
[1744311229248,0.012596,79389.0,79384.0,0.264535]
[1744311229451,0.251928,79388.0,79385.0,0.251936]
[1744311229658,0.25193,79387.0,79385.0,0.251936]
[1744311229913,0.25193,79387.0,79384.0,0.264535]
[1744311230244,0.012594,79397.0,79386.0,0.012596]
[1744311230475,0.00042147,79394.0,79392.0,0.251914]
[1744311230809,0.00042147,79394.0,79390.0,0.264514]
[1744311231304,0.00042147,79394.0,79393.0,0.264506]
[1744311231661,0.251955,79380.0,79372.0,0.0476]
[1744311231886,0.00042147,79394.0,79372.0,0.0476]
[1744311231887,0.264529,79386.0,79382.0,0.251946]
[1744311232090,0.251939,79384.0,79378.0,0.012597]
[1744311232310,0.251936,79385.0,79382.0,0.251943]
[1744311232508,0.264529,79386.0,79383.0,0.251942]
[1744311232844,0.012597,79381.0,79380.0,0.17676]
[1744311233044,0.264546,79381.0,79376.0,0.251962]
[1744311233270,0.012597,79379.0,79376.0,0.34]
[1744311233393,0.251964,79378.0,79376.0,0.34]
[1744311233598,0.251964,79378.0,79376.0,0.591965]
[1744311233981,0.012598,79376.0,79372.0,0.591975]
[1744311234199,0.012596,79385.0,79379.0,0.251953]
[1744311234388,0.251952,79381.0,79378.0,0.251958]
[1744311234599,0.012597,79383.0,79379.0,0.251952]
[1744311234774,0.012597,79383.0,79378.0,0.012597]
[1744311234974,0.251936,79386.0,79379.0,0.012597]
[1744311235176,0.251937,79385.0,79383.0,0.251942]
[1744311235362,0.251933,79386.0,79383.0,0.251942]
[1744311235762,0.251937,79385.0,79382.0,0.251943]
[1744311235963,0.251939,79384.0,79381.0,0.251949]
[1744311236231,0.251939,79384.0,79378.0,0.251953]
[1744311236376,0.251939,79384.0,79372.0,0.591975]
[1744311236377,0.012597,79381.0,79374.0,0.189358]
[1744311236591,0.012596,79385.0,79370.0,0.112599]
[1744311236592,0.37786,79395.0,79371.0,0.34]
[1744311236904,0.251955,79380.0,79376.0,0.251962]
[1744311237208,0.251943,79383.0,79380.0,0.264549]
[1744311237404,0.012597,79378.0,79372.0,0.012598]
[1744311237566,0.251964,79377.0,79374.0,0.251968]
[1744311238185,0.251956,79379.0,79376.0,0.251965]
[1744311238634,0.251974,79373.0,79372.0,0.34]
[1744311238787,0.012597,79378.0,79363.0,0.252004]
[1744311238788,0.25199,79368.0,79365.0,0.251997]
[1744311238972,0.264586,79369.0,79363.0,0.264605]
[1744311239170,0.251981,79371.0,79366.0,0.012599]
[1744311239397,0.251978,79372.0,79368.0,0.012599]
[1744311239596,0.251978,79372.0,79366.0,0.012599]
[1744311239976,0.251978,79372.0,79360.0,0.0126]
[1744311239977,0.264589,79368.0,79349.0,0.012602]
[1744311240101,0.264589,79368.0,79358.0,0.252022]
[1744311240302,0.012598,79375.0,79370.0,0.251983]
[1744311240638,0.02346264,79374.0,79373.0,0.251974]
[1744311240834,0.02346264,79374.0,79373.0,0.264572]
[1744311241221,0.012596,79387.0,79380.0,0.012597]
[1744311241422,0.251939,79384.0,79381.0,0.251948]
[1744311241598,0.264535,79384.0,79379.0,0.251954]
[1744311241829,0.264535,79384.0,79381.0,0.251948]
[1744311242025,0.251943,79383.0,79380.0,0.25195]
[1744311242249,0.251937,79385.0,79381.0,0.251949]
[1744311242455,0.25194,79384.0,79381.0,0.251949]
[1744311242871,0.012597,79383.0,79378.0,0.012597]
[1744311243069,0.251943,79383.0,79380.0,0.251949]
[1744311243444,0.251929,79388.0,79380.0,0.012597]
[1744311243643,3.397412,79431.0,79391.0,0.012595]
[1744311243644,0.012594,79401.0,79391.0,0.012595]
[1744311243845,0.00075833,79400.0,79399.0,0.264486]
[1744311244294,0.012597,79382.0,79377.0,0.17676]
[1744311244499,0.251934,79386.0,79381.0,0.34]
[1744311244697,0.251937,79385.0,79381.0,0.591949]
[1744311244899,0.25194,79384.0,79381.0,0.34]
[1744311245076,0.012597,79381.0,79375.0,0.34]
[1744311245274,0.012597,79380.0,79375.0,0.34]
[1744311245594,0.251963,79377.0,79368.0,0.352599]
[1744311245796,0.264551,79380.0,79371.0,0.012599]
[1744311245997,0.251959,79378.0,79374.0,0.25197]
[1744311246182,0.264556,79378.0,79374.0,0.25197]
[1744311246384,0.012598,79377.0,79372.0,0.264575]
[1744311246785,0.251965,79376.0,79373.0,0.251974]
[1744311246985,0.012596,79384.0,79373.0,0.012598]
[1744311247189,0.012597,79379.0,79372.0,0.012598]
[1744311247390,0.012597,79378.0,79373.0,0.012598]
[1744311247590,0.012597,79378.0,79366.0,0.251995]
[1744311247591,0.264589,79368.0,79358.0,0.012601]
[1744311247826,0.264589,79368.0,79352.0,1.548121]
[1744311247986,0.264589,79368.0,79355.0,0.252031]
[1744311248323,0.264589,79368.0,79356.0,0.264629]
[1744311248526,0.264589,79368.0,79357.0,0.012601]
[1744311248668,0.264589,79368.0,79345.0,9.5e-07]
[1744311248669,0.40603743,79368.0,79345.0,9.5e-07]
[1744311248872,0.40603743,79368.0,79345.0,0.01260395]
[1744311249124,0.42955482,79368.0,79346.0,0.252059]
[1744311249576,0.41501397,79368.0,79347.0,0.012602]
[1744311249777,0.28810639,79368.0,79353.0,0.252038]
[1744311250140,0.28810639,79368.0,79352.0,0.012602]
[1744311250341,0.28810639,79368.0,79356.0,0.012601]
[1744311250632,0.28810639,79368.0,79355.0,0.012601]
[1744311250750,0.28810639,79368.0,79356.0,0.252026]
[1744311251094,0.264589,79368.0,79356.0,0.252026]
[1744311251295,0.264589,79368.0,79358.0,0.012601]
[1744311251498,0.264589,79368.0,79359.0,0.0126]
[1744311251701,0.264589,79368.0,79358.0,0.252021]
[1744311251901,0.40603743,79368.0,79345.0,9.5e-07]
[1744311252109,0.49813743,79368.0,79345.0,9.5e-07]
[1744311252338,1.25723743,79368.0,79345.0,9.5e-07]
[1744311252547,1.28569754,79368.0,79345.0,9.5e-07]
[1744311252676,0.264663,79346.0,79345.0,9.5e-07]
[1744311252881,0.43877058,79346.0,79345.0,0.00012704]
[1744311253086,0.47677154,79346.0,79345.0,0.00012704]
[1744311253293,0.28812311,79346.0,79345.0,0.00012704]
[1744311254450,0.264663,79346.0,79345.0,0.00012704]
[1744311255771,0.39157058,79346.0,79345.0,0.00012704]
[1744311256522,0.82521143,79346.0,79345.0,0.00012704]
[1744311256730,1.2371284,79346.0,79345.0,0.00012704]
[1744311256975,1.2371284,79346.0,79345.0,4e-08]
[1744311258003,0.604676,79342.0,79341.0,4e-08]
[1744311258178,0.74612443,79342.0,79341.0,4e-08]
[1744311259587,0.76947822,79342.0,79341.0,4e-08]
[1744311260135,0.264696,79336.0,79335.0,2.4e-07]
[1744311260335,0.39160358,79336.0,79335.0,2.4e-07]
[1744311260468,1.18859822,79336.0,79335.0,2.4e-07]
[1744311260683,0.264716,79330.0,79329.0,8.4e-07]
[1744311260878,0.82526443,79330.0,79329.0,8.4e-07]
[1744311261123,0.84861822,79330.0,79329.0,8.4e-07]
[1744311261529,0.84861822,79330.0,79316.0,0.0001678]
[1744311261530,0.264759,79317.0,79316.0,8.4e-07]
[1744311261729,0.40620743,79317.0,79316.0,8.4e-07]
[1744311261934,0.41561735,79317.0,79316.0,8.4e-07]
[1744311262150,0.43897114,79317.0,79316.0,8.4e-07]
[1744311262744,0.43901323,79317.0,79316.0,8.4e-07]
[1744311263375,0.41565944,79317.0,79316.0,8.4e-07]
[1744311264883,0.264776,79312.0,79311.0,4e-08]
[1744311265004,0.40622443,79312.0,79311.0,4e-08]
[1744311265990,0.40622443,79312.0,79297.0,0.0001679]
[1744311265991,0.252203,79302.0,79297.0,7.4e-07]
[1744311266205,0.01261,79298.0,79297.0,7.4e-07]
[1744311266949,0.264823,79298.0,79297.0,7.4e-07]
[1744311267422,0.40627143,79298.0,79297.0,7.4e-07]
[1744311267651,0.82537143,79298.0,79297.0,7.4e-07]
[1744311268788,0.81083058,79298.0,79297.0,7.4e-07]
[1744311269177,0.81083058,79298.0,79297.0,0.00010074]
[1744311269467,0.012608,79310.0,79297.0,0.21820832]
[1744311269683,4.209e-05,79317.0,79312.0,0.012608]
[1744311270130,4.209e-05,79317.0,79316.0,0.252155]
[1744311270351,4.209e-05,79317.0,79316.0,0.39166958]
[1744311271042,4.209e-05,79317.0,79311.0,0.1]
[1744311271043,0.252184,79307.0,79298.0,0.34]
[1744311271267,0.012609,79306.0,79298.0,0.34]
[1744311271495,0.25219,79305.0,79298.0,0.34]
[1744311271722,0.252203,79301.0,79298.0,0.34]
[1744311271992,0.264823,79298.0,79297.0,0.00020074]
[1744311273122,0.39173058,79298.0,79297.0,0.00020074]
[1744311273555,0.264823,79298.0,79297.0,0.00020074]
[1744311278134,0.252213,79298.0,79297.0,0.00020074]
[1744311278536,0.264823,79298.0,79297.0,0.00020074]
[1744311279242,0.252199,79303.0,79297.0,0.00020074]
[1744311279243,0.012609,79308.0,79297.0,0.00020074]
[1744311279529,0.504286,79321.0,79297.0,0.00020074]
[1744311279530,0.252194,79304.0,79297.0,0.00020074]
[1744311279707,0.252203,79302.0,79298.0,0.252213]
[1744311279911,0.012609,79305.0,79299.0,0.01261]
[1744311280168,0.504241,79328.0,79299.0,0.01261]
[1744311280169,0.012608,79314.0,79305.0,0.012609]
[1744311280327,0.264776,79313.0,79308.0,0.26479]
[1744311280506,0.264776,79313.0,79306.0,0.264796]
[1744311280507,0.26478,79311.0,79306.0,0.252187]
[1744311280702,0.252175,79310.0,79307.0,0.252182]
[1744311281098,0.012608,79310.0,79306.0,0.252187]
[1744311281298,0.252197,79303.0,79299.0,0.12690758]
[1744311281576,0.25219,79306.0,79298.0,0.01261]
[1744311281781,0.252198,79303.0,79298.0,0.264821]
[1744311281917,0.252198,79303.0,79299.0,0.252206]
[1744311282119,0.01261,79302.0,79299.0,0.252209]
[1744311282521,0.012609,79303.0,79299.0,0.252209]
[1744311282758,0.2522,79302.0,79298.0,0.264822]
[1744311282960,0.012609,79304.0,79297.0,0.00020074]
[1744311282961,0.252213,79298.0,79297.0,0.00020074]
[1744311283171,0.264823,79298.0,79297.0,0.00020074]
[1744311283752,0.39173058,79298.0,79297.0,0.00020074]
[1744311284566,0.39163058,79298.0,79297.0,0.00020074]
[1744311284726,0.264723,79298.0,79297.0,0.00020074]
[1744311284932,0.01261,79300.0,79297.0,0.00020074]
[1744311284933,0.252206,79300.0,79297.0,0.00020074]
[1744311285147,0.264823,79298.0,79297.0,0.00020074]
[1744311285593,0.39173058,79298.0,79297.0,0.00020074]
[1744311290173,0.40627143,79298.0,79297.0,0.00020074]
[1744311292471,0.39173058,79298.0,79297.0,0.00020074]
[1744311296198,0.40627143,79298.0,79297.0,0.00020074]
[1744311297775,0.39173058,79298.0,79297.0,0.00020074]
[1744311299474,0.264823,79298.0,79297.0,0.00020074]
[1744311301815,0.28834486,79298.0,79297.0,0.00020074]
[1744311302186,0.42979329,79298.0,79297.0,0.00020074]
[1744311302585,0.41525244,79298.0,79297.0,0.00020074]
[1744311302948,0.28834486,79298.0,79297.0,0.00020074]
[1744311303960,0.264823,79298.0,79297.0,0.00020074]
[1744311305019,0.264807,79303.0,79297.0,0.00020074]
[1744311305228,0.25221,79299.0,79297.0,0.00020074]
[1744311305346,0.252204,79301.0,79297.0,0.00020074]
[1744311305545,0.012609,79303.0,79297.0,0.01281074]
[1744311305747,0.13129828,79305.0,79300.0,0.252204]
[1744311305970,0.13129828,79305.0,79299.0,0.06131]
[1744311305971,0.13129828,79305.0,79304.0,0.264803]
[1744311306173,0.13129828,79305.0,79304.0,0.39171058]
[1744311306591,0.13129828,79311.0,79310.0,0.264783]
[1744311307155,0.13129828,79311.0,79310.0,0.49169058]
[1744311307367,0.13129828,79311.0,79310.0,0.87979058]
[1744311307989,0.13129828,79311.0,79310.0,0.89210821]
[1744311308835,0.13129828,79311.0,79310.0,0.34]
[1744311309035,0.13129828,79311.0,79310.0,0.592175]
[1744311309866,0.01264909,79317.0,79307.0,0.352609]
[1744311309867,0.012608,79312.0,79307.0,0.352609]
[1744311310075,0.01261,79300.0,79293.0,0.047]
[1744311310273,0.01261,79300.0,79286.0,8e-05]
[1744311310274,0.264823,79298.0,79286.0,8e-05]
[1744311310480,0.40627143,79298.0,79286.0,8e-05]
[1744311310632,0.44251274,79298.0,79286.0,8e-05]
[1744311311729,0.44251274,79298.0,79297.0,7.4e-07]
[1744311311912,0.36689974,79298.0,79291.0,6.4e-07]
[1744311312066,0.27938385,79292.0,79291.0,6.4e-07]
[1744311312409,0.42975791,79292.0,79291.0,6.4e-07]
[1744311313227,0.43903367,79292.0,79291.0,6.4e-07]
[1744311314019,0.26486,79287.0,79284.0,5.4e-07]
[1744311314221,0.264877,79282.0,79281.0,5.4e-07]
[1744311314886,0.02346648,79282.0,79281.0,5.4e-07]
[1744311315284,0.03607948,79282.0,79281.0,5.4e-07]
[1744311315482,0.02346648,79282.0,79281.0,5.4e-07]
[1744311315682,0.02346648,79282.0,79281.0,0.01261354]
[1744311316017,0.02346648,79289.0,79288.0,0.252244]
[1744311316163,0.264831,79296.0,79289.0,0.252239]
[1744311316164,0.25223,79293.0,79289.0,0.252239]
[1744311316368,0.252239,79290.0,79285.0,0.012612]
[1744311316589,0.252245,79288.0,79285.0,0.252253]
[1744311316794,0.252254,79285.0,79281.0,5.4e-07]
[1744311316966,0.012613,79282.0,79281.0,5.4e-07]
[1744311317766,0.252261,79283.0,79281.0,5.4e-07]
[1744311317989,0.012613,79282.0,79281.0,5.4e-07]
[1744311318975,0.16301441,79282.0,79281.0,5.4e-07]
[1744311319108,0.17755526,79282.0,79281.0,5.4e-07]
[1744311319445,0.18689766,79282.0,79281.0,5.4e-07]
[1744311319980,0.17755526,79282.0,79281.0,5.4e-07]
[1744311320562,0.42981926,79282.0,79281.0,5.4e-07]
[1744311322055,0.43931393,79282.0,79281.0,5.4e-07]
[1744311323044,0.42981926,79282.0,79281.0,5.4e-07]
[1744311326383,0.42981926,79282.0,79281.0,0.00010054]
[1744311326983,0.60629926,79282.0,79281.0,0.00010054]
[1744311328216,0.42981926,79282.0,79281.0,0.00010054]
[1744311328566,0.28837083,79282.0,79281.0,0.00010054]
[1744311329394,0.02349383,79282.0,79281.0,0.00010054]
[1744311329795,0.252262,79283.0,79281.0,0.00010054]
[1744311330240,0.264877,79282.0,79281.0,0.00010054]
[1744311330448,0.252255,79285.0,79281.0,0.25236754]
[1744311330653,0.25226,79283.0,79281.0,0.00010054]
[1744311330877,0.252264,79282.0,79281.0,0.00010054]
[1744311331297,0.25226,79283.0,79281.0,0.00010054]
[1744311331532,0.252236,79291.0,79281.0,0.00010054]
[1744311331533,0.01265307,79292.0,79284.0,0.012612]
[1744311331748,0.01265307,79292.0,79291.0,0.264846]
[1744311331749,4.207e-05,79292.0,79291.0,0.264846]
[1744311332164,4.207e-05,79292.0,79291.0,0.87905358]
[1744311332618,0.13129828,79305.0,79291.0,0.87905358]
[1744311332619,0.13129828,79305.0,79304.0,0.364803]
[1744311332790,0.13129828,79305.0,79304.0,0.92501058]
[1744311333421,0.252134,79323.0,79313.0,0.264773]
[1744311333627,0.012606,79325.0,79313.0,0.39168058]
[1744311333792,0.26474,79323.0,79313.0,0.39168058]
[1744311333987,0.252121,79327.0,79313.0,0.39168058]
[1744311334197,0.012604,79335.0,79313.0,0.73168058]
[1744311334561,0.012604,79334.0,79313.0,0.73168058]
[1744311334758,0.012605,79332.0,79313.0,0.73168058]
[1744311334957,0.14390228,79337.0,79313.0,0.83168058]
[1744311335164,0.012939,79341.0,79313.0,0.83168058]
[1744311335300,0.012603,79340.0,79313.0,1.70643558]
[1744311335505,0.264704,79334.0,79313.0,0.83168058]
[1744311335707,0.252095,79336.0,79313.0,0.83178058]
[1744311336067,0.252095,79336.0,79313.0,1.18702758]
[1744311336224,0.012606,79322.0,79313.0,0.73178058]
[1744311336607,0.012606,79322.0,79313.0,0.0001]
[1744311336608,0.012607,79318.0,79313.0,0.0001]
[1744311336807,0.252158,79316.0,79313.0,0.0001]
[1744311337008,0.25214,79321.0,79313.0,0.13961558]
[1744311337213,0.012607,79321.0,79313.0,0.13961558]
[1744311337694,0.012605,79328.0,79313.0,0.13961558]
[1744311337827,0.252142,79321.0,79313.0,0.13961558]
[1744311338006,0.264749,79321.0,79313.0,0.13961558]
[1744311338367,0.252155,79317.0,79313.0,0.12700758]
[1744311338549,0.252156,79316.0,79313.0,0.0001]
[1744311338922,0.252162,79315.0,79313.0,0.0001]
[1744311339123,0.25216,79315.0,79313.0,0.0001]
[1744311339345,0.264763,79316.0,79313.0,0.0001]
[1744311339508,0.252159,79315.0,79313.0,0.0001]
[1744311339719,0.0129442,79314.0,79313.0,0.0001]
[1744311340910,0.0003362,79314.0,79313.0,0.0001]
[1744311341086,0.0003362,79314.0,79313.0,0.13961558]
[1744311341263,0.0003362,79314.0,79313.0,0.12952896]
[1744311341480,0.0003362,79314.0,79313.0,0.12700758]
[1744311342069,0.0003362,79314.0,79313.0,0.13961558]
[1744311342273,0.0003362,79314.0,79313.0,0.12700758]
[1744311342478,0.0003362,79314.0,79313.0,0.13961558]
[1744311342675,0.0003362,79314.0,79313.0,0.48213696]
[1744311342877,0.0003362,79314.0,79313.0,0.57961558]
[1744311344771,0.0003362,79314.0,79313.0,0.87998058]
[1744311346402,0.0003362,79314.0,79313.0,1.50694258]
[1744311346568,0.000336,79330.0,79329.0,0.704719]
[1744311346770,0.000336,79330.0,79329.0,1.00790658]
[1744311347174,0.000336,79330.0,79329.0,0.83162658]
[1744311347877,0.000336,79330.0,79329.0,0.84109686]
[1744311348342,0.000336,79330.0,79329.0,0.85355276]
[1744311348702,0.000336,79344.0,79340.0,0.704682]
[1744311348901,0.000336,79344.0,79340.0,1.78430858]
[1744311349712,0.000336,79344.0,79340.0,1.44886058]
[1744311350051,0.000336,79344.0,79340.0,0.93158958]
[1744311350351,0.000336,79344.0,79340.0,1.05067958]
[1744311350699,0.000336,79346.0,79340.0,1.05067958]
[1744311350700,0.0003358,79362.0,79361.0,0.252012]
[1744311350909,3.8e-07,79362.0,79361.0,4.70812658]
[1744311351119,3.8e-07,79362.0,79361.0,1.10201958]
[1744311351827,0.002,79369.0,79368.0,0.704589]
[1744311352031,8e-07,79378.0,79377.0,0.112598]
[1744311352234,0.0003358,79389.0,79388.0,0.604523]
[1744311352435,0.00075724,79389.0,79388.0,0.73143058]
[1744311352636,0.00075724,79389.0,79388.0,0.84037636]
[1744311352949,0.00075724,79389.0,79388.0,0.84979749]
[1744311353348,0.00075724,79389.0,79388.0,0.80009749]
[1744311353551,0.00075724,79389.0,79388.0,0.89067636]
[1744311354404,0.00075724,79389.0,79388.0,0.84427636]
[1744311354739,0.00075724,79389.0,79388.0,0.46690758]
[1744311354974,0.00075724,79389.0,79386.0,0.34]
[1744311355195,0.00075724,79389.0,79386.0,0.46690758]
[1744311355407,0.00075724,79389.0,79386.0,0.73143458]
[1744311355626,0.25194,79384.0,79380.0,0.1]
[1744311355848,0.264531,79386.0,79381.0,0.37885558]
[1744311356067,0.00075724,79389.0,79377.0,0.188798]
[1744311356068,0.01335324,79389.0,79385.0,0.251935]
[1744311356292,0.251928,79388.0,79384.0,0.012596]
[1744311356519,0.251931,79387.0,79381.0,0.264545]
[1744311356766,0.012597,79383.0,79378.0,0.12690758]
[1744311356992,0.264541,79383.0,79378.0,0.251957]
[1744311357209,0.26455,79380.0,79372.0,0.604573]
[1744311357433,0.26455,79380.0,79374.0,0.34]
[1744311357672,0.012599,79368.0,79363.0,0.252006]
[1744311357871,0.012599,79368.0,79362.0,0.0126]
[1744311357872,0.251991,79368.0,79364.0,0.252002]
[1744311358073,0.251989,79369.0,79366.0,0.34]
[1744311358309,0.251989,79369.0,79365.0,0.251999]
[1744311358652,0.012598,79374.0,79314.0,0.0914]
[1744311358653,0.0126,79360.0,79355.0,0.00959231]
[1744311358872,0.0475,79382.0,79355.0,0.12690758]
[1744311358873,0.252022,79358.0,79355.0,0.12690758]
[1744311359044,0.252017,79360.0,79356.0,0.252028]
[1744311359199,0.0126,79361.0,79357.0,0.252025]
[1744311359402,0.0126,79361.0,79357.0,0.34]
[1744311359837,0.252038,79353.0,79345.0,0.012603]
[1744311360005,0.252038,79353.0,79348.0,0.13950958]
[1744311360226,0.4191,79380.0,79354.0,0.012601]
[1744311360427,0.264609,79362.0,79357.0,0.012601]
[1744311360767,0.12690758,79379.0,79347.0,0.01272858]
[1744311360768,0.012601,79354.0,79347.0,0.01272858]
[1744311360985,0.012601,79354.0,79349.0,0.012602]
[1744311361109,0.012601,79354.0,79347.0,0.13963616]
[1744311361110,0.252051,79349.0,79347.0,0.00012658]
[1744311361315,0.0126,79359.0,79351.0,0.252041]
[1744311361552,0.252025,79357.0,79352.0,0.252041]
[1744311361731,0.26462,79359.0,79351.0,0.252041]
[1744311361732,0.252033,79355.0,79351.0,0.252041]
[1744311361934,0.252025,79358.0,79352.0,0.252041]
[1744311362169,0.252025,79358.0,79347.0,0.12703416]
[1744311362170,0.012598,79376.0,79366.0,0.012599]
[1744311362346,0.012598,79376.0,79370.0,0.251984]
[1744311362513,0.251971,79375.0,79370.0,0.264583]
[1744311362725,0.012598,79377.0,79371.0,0.26458]
[1744311362954,0.251939,79384.0,79377.0,0.012598]
[1744311363154,0.251931,79387.0,79384.0,0.251938]
[1744311363353,0.0003358,79389.0,79384.0,0.012596]
[1744311363593,0.0129318,79389.0,79384.0,0.012596]
[1744311363809,0.25193,79387.0,79384.0,0.264535]
[1744311364202,0.00075724,79389.0,79387.0,0.251929]
[1744311364426,0.00075724,79389.0,79388.0,0.012596]
[1744311364791,0.00075724,79389.0,79386.0,0.012596]
[1744311365001,0.00075724,79389.0,79388.0,0.264523]
[1744311365708,0.00075724,79389.0,79388.0,0.39143058]
[1744311366406,0.00075724,79389.0,79388.0,0.83143058]
[1744311366718,0.00075724,79389.0,79388.0,0.94422046]
[1744311366918,0.00075724,79389.0,79388.0,1.12034046]
[1744311367123,2.4e-07,79389.0,79388.0,1.12034046]
[1744311367334,2.4e-07,79394.0,79393.0,0.604506]
[1744311367531,0.00012662,79394.0,79393.0,0.83141358]
[1744311368215,0.00012662,79394.0,79393.0,0.73141358]
[1744311368417,0.00012662,79394.0,79393.0,0.46690758]
[1744311368822,0.00012662,79394.0,79393.0,0.34]
[1744311369019,0.00012662,79394.0,79388.0,0.61910588]
[1744311369020,0.012595,79392.0,79388.0,0.17612]
[1744311369225,0.251921,79390.0,79388.0,0.17612]
[1744311369650,0.00012662,79394.0,79389.0,0.13950358]
[1744311369822,0.00012662,79394.0,79393.0,0.012595]
[1744311370047,0.00012662,79394.0,79393.0,0.1420215]
[1744311370469,0.00012662,79394.0,79393.0,0.12690758]
[1744311370876,0.251918,79391.0,79388.0,0.251926]
[1744311371101,0.26452,79389.0,79388.0,0.12690758]
[1744311371296,0.26452,79389.0,79383.0,0.34]
[1744311371297,0.264535,79384.0,79383.0,0.34]
[1744311371502,0.012597,79383.0,79376.0,0.012598]
[1744311371705,0.264538,79384.0,79378.0,0.34]
[1744311371910,0.251918,79391.0,79378.0,0.34]
[1744311371911,0.012595,79396.0,79391.0,0.251916]
[1744311372152,0.251918,79391.0,79387.0,0.25193]